[Event "Australian-ch 2018"]
[Site "Sydney"]
[Date "2018.01.08"]
[Round "7.13"]
[White "Asaka, Samuel"]
[Black "Winkelman, Albert"]
[Result "1-0"]
[WhiteElo "1959"]
[BlackElo "2017"]
[PlyCount "79"]
[EventDate "2018.01.02"]
[EventType "tourn"]
[EventCountry "AUS"]
[TimeControl "40/5400+30:1800+30"]
[WhiteClock "1:30:30"]
[BlackClock "1:30:30"]

1. d4 {[%emt 0:00:00]} Nf6 {[%emt 0:00:00]} 2. c4 {[%emt 0:00:30]} e6 {[%emt 0:00:30]} 3. g3 {[%emt 0:00:30]} d5 {[%emt 0:00:30]} 4. Nf3 {[%emt 0:00:30]} Be7 {[%emt 0:00:30]} 5. Bg2 {[%emt 0:00:30]} O-O {[%emt 0:00:30]} 6. O-O {[%emt 0:00:30]} dxc4 {[%emt 0:00:30]} 7. Qc2 {[%emt 0:00:30]} a6 {[%emt 0:00:30]} 8. a4 {[%emt 0:00:30]} Bd7 {[%emt 0:00:30]} 9. Qxc4 {[%emt 0:00:30]} Bc6 {[%emt 0:00:30]} 10. Bf4 {[%emt 0:00:30]} a5 {[%emt 0:00:30]} 11. Nc3 {[%emt 0:00:30]} Na6 {[%emt 0:00:30]} 12. Rac1 {[%emt 0:00:30]} Bd6 {[%emt 0:00:30]} 13. Bg5 {[%emt 0:00:30]} h6 {[%emt 0:00:30]} 14. Bxf6 {[%emt 0:00:30]} Qxf6 {[%emt 0:00:30]} 15. e4 {[%emt 0:00:30]} e5 {[%emt 0:00:30]} 16. Nd5 {[%emt 0:00:30]} Qe6 {[%emt 0:00:30]} 17. b3 {[%emt 0:00:30]} Rad8 {[%emt 0:00:30]} 18. Ne3 {[%emt 0:00:30]} Qxc4 {[%emt 0:00:30]} 19. Nxc4 {[%emt 0:00:30]} Bxe4 {[%emt 0:00:30]} 20. Nxd6 {[%emt 0:00:30]} Rxd6 {[%emt 0:00:30]} 21. dxe5 {[%emt 0:00:30]} Rd3 {[%emt 0:00:30]} 22. Ne1 {[%emt 0:00:30]} Rd4 {[%emt 0:00:30]} 23. Nc2 {[%emt 0:00:30]} Bxc2 {[%emt 0:00:30]} 24. Rxc2 {[%emt 0:00:30]} b6 {[%emt 0:00:30]} 25. Rc6 {[%emt 0:00:30]} Rfd8 {[%emt 0:00:30]} 26. Rb1 {[%emt 0:00:30]} Rd1+ {[%emt 0:00:30]} 27. Rxd1 {[%emt 0:00:30]} Rxd1+ {[%emt 0:00:30]} 28. Bf1 {[%emt 0:00:30]} Nc5 {[%emt 0:00:30]} 29. Rxc7 {[%emt 0:00:30]} Nxb3 {[%emt 0:00:30]} 30. Kg2 {[%emt 0:00:30]} Nc5 {[%emt 0:00:30]} 31. Bc4 {[%emt 0:00:30]} Ne6 {[%emt 0:00:30]} 32. Rc6 {[%emt 0:00:30]} Rd4 {[%emt 0:00:30]} 33. Bb5 {[%emt 0:00:30]} Nc5 {[%emt 0:00:30]} 34. Rxb6 {[%emt 0:00:30]} Nxa4 {[%emt 0:00:30]} 35. Ra6 {[%emt 0:00:30]} Nc3 {[%emt 0:00:30]} 36. Rxa5 {[%emt 0:00:30]} Nxb5 {[%emt 0:00:30]} 37. Rxb5 {[%emt 0:00:30]} g5 {[%emt 0:00:30]} 38. h3 {[%emt 0:00:30]} Kg7 {[%emt 0:00:30]} 39. Kf3 {[%emt 0:00:30]} Kg6 {[%emt 0:00:30]} 40. Rb6+ {[%emt 0:00:30] loss on time} 1-0

[Event "Australian-ch 2018"]
[Site "Sydney"]
[Date "2018.01.08"]
[Round "7.14"]
[White "O'Connell, Kevin J"]
[Black "Loh, Zachary"]
[Result "1/2-1/2"]
[WhiteElo "2328"]
[BlackElo "2193"]
[PlyCount "97"]
[EventDate "2018.01.02"]
[EventType "tourn"]
[EventCountry "AUS"]
[TimeControl "40/5400+30:1800+30"]
[WhiteClock "1:30:30"]
[BlackClock "1:30:30"]

1. e4 {[%emt 0:00:00]} c5 {[%emt 0:00:00]} 2. Nf3 {[%emt 0:00:30]} d6 {[%emt 0:00:30]} 3. d4 {[%emt 0:00:30]} cxd4 {[%emt 0:00:30]} 4. Nxd4 {[%emt 0:00:30]} Nf6 {[%emt 0:00:30]} 5. Nc3 {[%emt 0:00:30]} a6 {[%emt 0:00:30]} 6. Bg5 {[%emt 0:00:30]} Nbd7 {[%emt 0:00:30]} 7. Bc4 {[%emt 0:00:30]} e6 {[%emt 0:00:30]} 8. Bb3 {[%emt 0:00:30]} Qc7 {[%emt 0:00:30]} 9. Qe2 {[%emt 0:00:30]} b5 {[%emt 0:00:30]} 10. a3 {[%emt 0:00:30]} Be7 {[%emt 0:00:30]} 11. Bxe6 {[%emt 0:00:30]} fxe6 {[%emt 0:00:30]} 12. Nxe6 {[%emt 0:00:30]} Qc4 {[%emt 0:00:30]} 13. Qxc4 {[%emt 0:00:30]} bxc4 {[%emt 0:00:30]} 14. Nc7+ {[%emt 0:00:30]} Kd8 {[%emt 0:00:30]} 15. Ne6+ {[%emt 0:00:30]} Ke8 {[%emt 0:00:30]} 16. Nc7+ {[%emt 0:00:30]} Kd8 {[%emt 0:00:30]} 17. Nxa8 {[%emt 0:00:30]} Bb7 {[%emt 0:00:30]} 18. O-O-O {[%emt 0:00:30]} Bxa8 {[%emt 0:00:30]} 19. Rd4 {[%emt 0:00:30]} Rf8 {[%emt 0:00:30]} 20. Rxc4 {[%emt 0:00:30]} h6 {[%emt 0:00:30]} 21. Bh4 {[%emt 0:00:30]} g5 {[%emt 0:00:30]} 22. Bg3 {[%emt 0:00:30]} Ng4 {[%emt 0:00:30]} 23. f3 {[%emt 0:00:30]} Nge5 {[%emt 0:00:30]} 24. Ra4 {[%emt 0:00:30]} Bb7 {[%emt 0:00:30]} 25. Nd5 {[%emt 0:00:30]} Bxd5 {[%emt 0:00:30]} 26. exd5 {[%emt 0:00:30]} Nc5 {[%emt 0:00:30]} 27. Rb4 {[%emt 0:00:30]} Rf5 {[%emt 0:00:30]} 28. Kb1 {[%emt 0:00:30]} a5 {[%emt 0:00:30]} 29. Rb8+ {[%emt 0:00:30]} Kc7 {[%emt 0:00:30]} 30. Rh8 {[%emt 0:00:30]} Bf6 {[%emt 0:00:30]} 31. Bxe5 {[%emt 0:00:30]} Bxe5 {[%emt 0:00:30]} 32. Rxh6 {[%emt 0:00:30]} Na4 {[%emt 0:00:30]} 33. c3 {[%emt 0:00:30]} Bf4 {[%emt 0:00:30]} 34. Rd1 {[%emt 0:00:30]} Be5 {[%emt 0:00:30]} 35. Kc2 {[%emt 0:00:30]} Rf7 {[%emt 0:00:30]} 36. h3 {[%emt 0:00:30]} Kb6 {[%emt 0:00:30]} 37. c4 {[%emt 0:00:30]} Rf4 {[%emt 0:00:30]} 38. b3 {[%emt 0:00:30]} Nc5 {[%emt 0:00:30]} 39. Re1 {[%emt 0:00:30]} Kb7 {[%emt 0:00:30]} 40. Rh7+ {[%emt 0:00:30]} Kb6 {[%emt 0:00:30]} 41. Re7 {[%emt 0:30:30]} a4 {[%emt 0:30:30]} 42. bxa4 {[%emt 0:00:30]} Rxc4+ {[%emt 0:00:30]} 43. Kd1 {[%emt 0:00:30]} Bg3 {[%emt 0:00:30]} 44. R1e2 {[%emt 0:00:30]} Nxa4 {[%emt 0:00:30]} 45. Rc2 {[%emt 0:00:30]} Rd4+ {[%emt 0:00:30]} 46. Rd2 {[%emt 0:00:30]} Rc4 {[%emt 0:00:30]} 47. Rc2 {[%emt 0:00:30]} Rd4+ {[%emt 0:00:30]} 48. Rd2 {[%emt 0:00:30]} Rc4 {[%emt 0:00:30]} 49. Rc2 {[%emt 0:00:30]} 1/2-1/2

[Event "Australian-ch 2018"]
[Site "Sydney"]
[Date "2018.01.08"]
[Round "7.15"]
[White "Hardegen, Andrew"]
[Black "Willathgamuwa, Kevin"]
[Result "1/2-1/2"]
[WhiteElo "1999"]
[BlackElo "2113"]
[PlyCount "50"]
[EventDate "2018.01.02"]
[EventType "tourn"]
[EventCountry "AUS"]
[TimeControl "40/5400+30:1800+30"]
[WhiteClock "1:30:30"]
[BlackClock "1:30:30"]

1. d4 {[%emt 0:00:00]} d5 {[%emt 0:00:00]} 2. c4 {[%emt 0:00:30]} c6 {[%emt 0:00:30]} 3. Nf3 {[%emt 0:00:30]} Nf6 {[%emt 0:00:30]} 4. Nc3 {[%emt 0:00:30]} e6 {[%emt 0:00:30]} 5. e3 {[%emt 0:00:30]} Be7 {[%emt 0:00:30]} 6. Qc2 {[%emt 0:00:30]} O-O {[%emt 0:00:30]} 7. Bd3 {[%emt 0:00:30]} Nbd7 {[%emt 0:00:30]} 8. O-O {[%emt 0:00:30]} b6 {[%emt 0:00:30]} 9. e4 {[%emt 0:00:30]} dxe4 {[%emt 0:00:30]} 10. Nxe4 {[%emt 0:00:30]} Bb7 {[%emt 0:00:30]} 11. Bf4 {[%emt 0:00:30]} Nxe4 {[%emt 0:00:30]} 12. Bxe4 {[%emt 0:00:30]} Nf6 {[%emt 0:00:30]} 13. Be5 {[%emt 0:00:30]} Nxe4 {[%emt 0:00:30]} 14. Qxe4 {[%emt 0:00:30]} Bf6 {[%emt 0:00:30]} 15. Rfd1 {[%emt 0:00:30]} Rc8 {[%emt 0:00:30]} 16. c5 {[%emt 0:00:30]} Qd5 {[%emt 0:00:30]} 17. Qxd5 {[%emt 0:00:30]} exd5 {[%emt 0:00:30]} 18. Bxf6 {[%emt 0:00:30]} gxf6 {[%emt 0:00:30]} 19. Re1 {[%emt 0:00:30]} Rfe8 {[%emt 0:00:30]} 20. Rxe8+ {[%emt 0:00:30]} Rxe8 {[%emt 0:00:30]} 21. Re1 {[%emt 0:00:30]} Re6 {[%emt 0:00:30]} 22. b4 {[%emt 0:00:30]} Ba6 {[%emt 0:00:30]} 23. a4 {[%emt 0:00:30]} b5 {[%emt 0:00:30]} 24. a5 {[%emt 0:00:30]} Bc8 {[%emt 0:00:30]} 25. h3 {[%emt 0:00:30]} Kg7 {[%emt 0:00:30]} 1/2-1/2

[Event "Australian-ch 2018"]
[Site "Sydney"]
[Date "2018.01.08"]
[Round "7.16"]
[White "Wright, Neil"]
[Black "Mcnamara, Gary"]
[Result "1-0"]
[WhiteElo "2126"]
[BlackElo "2134"]
[PlyCount "37"]
[EventDate "2018.01.02"]
[EventType "tourn"]
[EventCountry "AUS"]
[TimeControl "40/5400+30:1800+30"]
[WhiteClock "1:30:30"]
[BlackClock "1:30:30"]

1. e4 {[%emt 0:00:00]} e5 {[%emt 0:00:00]} 2. Nf3 {[%emt 0:00:30]} Nf6 {[%emt 0:00:30]} 3. d4 {[%emt 0:00:30]} Nxe4 {[%emt 0:00:30]} 4. Bd3 {[%emt 0:00:30]} d5 {[%emt 0:00:30]} 5. Nxe5 {[%emt 0:00:30]} Nd7 {[%emt 0:00:30]} 6. Bf4 {[%emt 0:00:30]} Ndf6 {[%emt 0:00:30]} 7. O-O {[%emt 0:00:30]} Be7 {[%emt 0:00:30]} 8. Re1 {[%emt 0:00:30]} O-O {[%emt 0:00:30]} 9. c4 {[%emt 0:00:30]} Nd6 {[%emt 0:00:30]} 10. Nd2 {[%emt 0:00:30]} Nf5 {[%emt 0:00:30]} 11. Ndf3 {[%emt 0:00:30]} c5 {[%emt 0:00:30]} 12. dxc5 {[%emt 0:00:30]} Bxc5 {[%emt 0:00:30]} 13. Qc2 {[%emt 0:00:30]} g6 {[%emt 0:00:30]} 14. Bg5 {[%emt 0:00:30]} h6 {[%emt 0:00:30]} 15. Bxf6 {[%emt 0:00:30]} Qxf6 {[%emt 0:00:30]} 16. cxd5 {[%emt 0:00:30]} Bb4 {[%emt 0:00:30]} 17. Re4 {[%emt 0:00:30]} Bd6 {[%emt 0:00:30]} 18. Rae1 {[%emt 0:00:30]} Rd8 {[%emt 0:00:30]} 19. Ng4 {[%emt 0:00:30]} 1-0

[Event "Australian-ch 2018"]
[Site "Sydney"]
[Date "2018.01.09"]
[Round "8"]
[White "Lane, Gary W"]
[Black "Kethro, Michael"]
[Result "1-0"]
[ECO "C07"]
[WhiteElo "2401"]
[BlackElo "2195"]
[PlyCount "45"]
[EventDate "2018.01.02"]
[EventType "tourn"]
[EventCountry "AUS"]
[TimeControl "40/5400+30:1800+30"]

1. e4 {[%emt 0:00:00]} e6 {[%emt 0:01:58]} 2. d4 {[%emt 0:00:29]} d5 {[%emt 0:00:12]} 3. Nd2 {[%emt 0:00:07]} c5 {[%emt 0:00:25]} 4. exd5 {[%emt 0:01:13]} Qxd5 {[%emt 0:00:14]} 5. Ngf3 {[%emt 0:01:23]} cxd4 {[%emt 0:00:30]} 6. Bc4 {[%emt 0:00:06]} Qd7 {[%emt 0:01:53]} 7. O-O {[%emt 0:01:48]} Nc6 {[%emt 0:00:38]} 8. Nb3 {[%emt 0:01:39]} Nf6 {[%emt 0:01:40]} 9. Nbxd4 {[%emt 0:02:14]} Nxd4 {[%emt 0:00:17]} 10. Nxd4 {[%emt 0:00:04]} a6 {[%emt 0:00:28]} 11. Re1 {[%emt 0:04:26]} b5 {[%emt 0:09:32]} 12. Bb3 {[%emt 0:04:26]} Bc5 {[%emt 0:18:14]} 13. Be3 {[%emt 0:06:14]} e5 {[%emt 0:18:17]} 14. Nf3 {[%emt 0:07:31]} Qxd1 {[%emt 0:08:05]} 15. Raxd1 {[%emt 0:00:06]} Bxe3 {[%emt 0:05:07]} 16. Rxe3 {[%emt 0:00:06]} O-O {[%emt 0:04:22]} 17. Nxe5 {[%emt 0:02:03]} Ng4 {[%emt 0:06:25]} 18. Nxg4 {[%emt 0:07:48]} Bxg4 {[%emt 0:00:08]} 19. f3 {[%emt 0:00:08]} Bh5 {[%emt 0:03:08]} 20. g4 {[%emt 0:02:57]} Bg6 {[%emt 0:00:31]} 21. f4 {[%emt 0:00:21]} h6 {[%emt 0:00:57]} 22. f5 {[%emt 0:01:56]} Bh7 {[%emt 0:00:20]} 23. Rd7 {[%emt 0:00:55]} 1-0

[Event "Australian-ch 2018"]
[Site "Sydney"]
[Date "2018.01.09"]
[Round "8"]
[White "Clarke, Brandon G I"]
[Black "Puccini, Jack"]
[Result "1-0"]
[ECO "E73"]
[WhiteElo "2360"]
[BlackElo "2278"]
[PlyCount "73"]
[EventDate "2018.01.02"]
[EventType "tourn"]
[EventCountry "AUS"]
[TimeControl "40/5400+30:1800+30"]

1. d4 {[%emt 0:03:30]} Nf6 {[%emt 0:00:45]} 2. c4 {[%emt 0:00:34]} g6 {[%emt 0:00:15]} 3. Nc3 {[%emt 0:00:22]} Bg7 {[%emt 0:00:05]} 4. e4 {[%emt 0:00:15]} d6 {[%emt 0:00:05]} 5. Be2 {[%emt 0:00:05]} O-O {[%emt 0:00:15]} 6. Be3 {[%emt 0:00:13]} e5 {[%emt 0:05:55]} 7. d5 {[%emt 0:00:06]} Na6 {[%emt 0:00:12]} 8. g4 {[%emt 0:00:08]} Nc5 {[%emt 0:00:34]} 9. f3 {[%emt 0:00:02]} h5 {[%emt 0:00:24]} 10. g5 {[%emt 0:00:05]} Nh7 {[%emt 0:00:05]} 11. h4 {[%emt 0:00:12]} f6 {[%emt 0:00:05]} 12. gxf6 {[%emt 0:00:04]} Bxf6 {[%emt 0:00:07]} 13. Bf2 {[%emt 0:00:05]} Be7 {[%emt 0:00:13]} 14. Kd2 {[%emt 0:00:06]} a5 {[%emt 0:00:41]} 15. Kc2 {[%emt 0:00:06]} c6 {[%emt 0:02:17]} 16. Qf1 {[%emt 0:01:09]} cxd5 {[%emt 0:15:17]} 17. Nxd5 {[%emt 0:02:50]} Nf6 {[%emt 0:05:36]} 18. Qg2 {[%emt 0:02:24]} Kh7 {[%emt 0:05:41]} 19. Nc3 {[%emt 0:12:13]} a4 {[%emt 0:11:13]} 20. Nh3 {[%emt 0:03:11]} Bxh3 {[%emt 0:12:54]} 21. Rxh3 {[%emt 0:00:42]} Ne6 {[%emt 0:00:18]} 22. Be3 {[%emt 0:00:21]} Nd4+ {[%emt 0:12:28]} 23. Bxd4 {[%emt 0:01:53]} exd4 {[%emt 0:00:06]} 24. Rg1 {[%emt 0:09:29]} Rg8 {[%emt 0:04:34]} 25. Nb5 {[%emt 0:00:25]} Rc8 {[%emt 0:01:15]} 26. Kb1 {[%emt 0:01:34]} a3 {[%emt 0:05:37]} 27. Rg3 {[%emt 0:06:34]} Qe8 {[%emt 0:02:31]} 28. b3 {[%emt 0:04:57]} Bf8 {[%emt 0:02:21]} 29. Bd3 {[%emt 0:01:14]} Nd7 {[%emt 0:05:01]} 30. f4 {[%emt 0:03:23]} Nf6 {[%emt 0:01:34]} 31. e5 {[%emt 0:05:03]} Ng4 {[%emt 0:00:35]} 32. exd6 {[%emt 0:00:47]} Qf7 {[%emt 0:01:38]} 33. Rxg4 {[%emt 0:04:01]} hxg4 {[%emt 0:00:13]} 34. h5 {[%emt 0:00:54]} Qxf4 {[%emt 0:01:08]} 35. hxg6+ {[%emt 0:00:52]} Kh6 {[%emt 0:00:57]} 36. Rh1+ {[%emt 0:00:33]} Kg5 {[%emt 0:00:30]} 37. Qd5+ {[%emt 0:00:02]} 1-0

[Event "Australian-ch 2018"]
[Site "Sydney"]
[Date "2018.01.09"]
[Round "8"]
[White "Brown, Andrew"]
[Black "Xie, George Wendi"]
[Result "0-1"]
[ECO "A41"]
[WhiteElo "2293"]
[BlackElo "2369"]
[PlyCount "81"]
[EventDate "2018.01.02"]
[EventType "tourn"]
[EventCountry "AUS"]
[TimeControl "40/5400+30:1800+30"]

1. d4 {[%emt 0:00:00]} d6 {[%emt 0:00:03]} 2. e4 {[%emt 0:00:48]} g6 {[%emt 0:00:03]} 3. Nf3 {[%emt 0:01:43]} Bg7 {[%emt 0:01:40]} 4. Bc4 {[%emt 0:00:23]} Nf6 {[%emt 0:00:29]} 5. Nc3 {[%emt 0:02:01]} O-O {[%emt 0:00:31]} 6. h3 {[%emt 0:04:16]} Nxe4 {[%emt 0:01:52]} 7. Nxe4 {[%emt 0:00:36]} d5 {[%emt 0:00:05]} 8. Bd3 {[%emt 0:00:36]} dxe4 {[%emt 0:00:04]} 9. Bxe4 {[%emt 0:00:06]} c5 {[%emt 0:01:25]} 10. dxc5 {[%emt 0:09:07]} Qxd1+ {[%emt 0:06:04]} 11. Kxd1 {[%emt 0:00:08]} Na6 {[%emt 0:00:02]} 12. c6 {[%emt 0:07:26]} bxc6 {[%emt 0:00:21]} 13. Bf4 {[%emt 0:12:02]} Nb4 {[%emt 0:09:52]} 14. c3 {[%emt 0:23:48]} Rd8+ {[%emt 0:05:42]} 15. Bd2 {[%emt 0:06:53]} Nd3 {[%emt 0:02:07]} 16. Bxd3 {[%emt 0:02:34]} Rxd3 {[%emt 0:00:12]} 17. Re1 {[%emt 0:07:00]} Bxh3 {[%emt 0:04:42]} 18. Ke2 {[%emt 0:02:33]} Bf5 {[%emt 0:00:14]} 19. g4 {[%emt 0:01:07]} Rxd2+ {[%emt 0:04:55]} 20. Nxd2 {[%emt 0:03:25]} Bxg4+ {[%emt 0:00:07]} 21. f3 {[%emt 0:00:42]} Be6 {[%emt 0:00:32]} 22. Ne4 {[%emt 0:06:28]} Rb8 {[%emt 0:00:10]} 23. b3 {[%emt 0:00:46]} f5 {[%emt 0:03:46]} 24. Nc5 {[%emt 0:02:26]} Bf7 {[%emt 0:00:06]} 25. Red1 {[%emt 0:01:30]} a5 {[%emt 0:04:37]} 26. Rd3 {[%emt 0:01:19]} h5 {[%emt 0:00:31]} 27. a4 {[%emt 0:02:02]} h4 {[%emt 0:06:53]} 28. f4 {[%emt 0:00:27]} Re8 {[%emt 0:02:22]} 29. Rh1 {[%emt 0:01:44]} e5 {[%emt 0:02:54]} 30. Re3 {[%emt 0:00:12]} exf4 {[%emt 0:02:10]} 31. Rxe8+ {[%emt 0:00:05]} Bxe8 {[%emt 0:00:01]} 32. b4 {[%emt 0:01:09]} Bxc3 {[%emt 0:00:21]} 33. bxa5 {[%emt 0:00:07]} Bxa5 {[%emt 0:00:07]} 34. Rxh4 {[%emt 0:00:20]} g5 {[%emt 0:03:30]} 35. Rh6 {[%emt 0:00:53]} g4 {[%emt 0:00:03]} 36. Rf6 {[%emt 0:00:38]} Bf7 {[%emt 0:07:24]} 37. Rxf5 {[%emt 0:00:20]} Bc4+ {[%emt 0:00:02]} 38. Nd3 {[%emt 0:00:46]} f3+ {[%emt 0:01:01]} 39. Ke3 {[%emt 0:00:08]} Bb6+ {[%emt 0:00:29]} 40. Nc5 {[%emt 0:00:51]} Bd5 {[%emt 0:30:47]} 41. Kd4 0-1

[Event "Australian-ch 2018"]
[Site "Sydney"]
[Date "2018.01.09"]
[Round "8"]
[White "Guichard, Pauline"]
[Black "Asaka, Samuel"]
[Result "1-0"]
[ECO "D00"]
[WhiteElo "2269"]
[BlackElo "1959"]
[PlyCount "59"]
[EventDate "2018.01.02"]
[EventType "tourn"]
[EventCountry "AUS"]
[TimeControl "40/5400+30:1800+30"]

1. d4 {[%emt 0:01:30]} d5 {[%emt 0:00:08]} 2. Bf4 {[%emt 0:00:08]} Nf6 {[%emt 0:00:30]} 3. e3 {[%emt 0:00:30]} e6 {[%emt 0:00:00]} 4. Nf3 {[%emt 0:00:00]} Bd6 {[%emt 0:00:00]} 5. Bg3 {[%emt 0:00:00]} O-O {[%emt 0:00:00]} 6. Nbd2 {[%emt 0:00:04]} b6 {[%emt 0:00:09]} 7. Bd3 {[%emt 0:02:05]} c5 {[%emt 0:03:06]} 8. c3 {[%emt 0:00:50]} Ba6 {[%emt 0:00:32]} 9. Bxa6 {[%emt 0:02:07]} Nxa6 {[%emt 0:00:10]} 10. Qe2 {[%emt 0:00:03]} Nb8 {[%emt 0:00:12]} 11. Ne5 {[%emt 0:03:37]} Qc7 {[%emt 0:02:45]} 12. O-O {[%emt 0:00:23]} Nc6 {[%emt 0:00:31]} 13. f4 {[%emt 0:00:24]} g6 {[%emt 0:00:30]} 14. Rac1 {[%emt 0:00:30]} Nh5 {[%emt 0:00:30]} 15. Bh4 {[%emt 0:00:30]} f6 {[%emt 0:00:30]} 16. g4 {[%emt 0:00:30]} Ng7 {[%emt 0:00:30]} 17. Nd3 {[%emt 0:00:30]} c4 {[%emt 0:00:30]} 18. Ne1 {[%emt 0:00:30]} b5 {[%emt 0:00:30]} 19. Ng2 {[%emt 0:00:30]} b4 {[%emt 0:00:30]} 20. e4 {[%emt 0:00:30]} bxc3 {[%emt 0:00:30]} 21. bxc3 {[%emt 0:00:30]} Rab8 {[%emt 0:00:30]} 22. Ne3 {[%emt 0:00:30]} Bxf4 {[%emt 0:00:30]} 23. exd5 {[%emt 0:00:30]} Bxe3+ {[%emt 0:00:30]} 24. Qxe3 {[%emt 0:00:30]} exd5 {[%emt 0:00:30]} 25. Bg3 {[%emt 0:00:30]} Rbe8 {[%emt 0:00:30]} 26. Qxe8 {[%emt 0:00:30]} Qxg3+ {[%emt 0:00:30]} 27. hxg3 {[%emt 0:00:30]} Nxe8 28. Rce1 {[%emt 0:42:11]} Kf7 {[%emt 1:10:27]} 29. Nf3 {[%emt 0:00:30]} Nd6 30. Ng5+ 1-0

[Event "Australian-ch 2018"]
[Site "Sydney"]
[Date "2018.01.10"]
[Round "9"]
[White "Xie, George Wendi"]
[Black "Dale, Ari"]
[Result "0-1"]
[ECO "A45"]
[WhiteElo "2369"]
[BlackElo "2356"]
[PlyCount "106"]
[EventDate "2018.01.02"]
[EventType "tourn"]
[EventCountry "AUS"]
[TimeControl "40/5400+30:1800+30"]

1. d4 {[%emt 0:07:13]} Nf6 {[%emt 0:00:21]} 2. Nc3 {[%emt 0:00:02]} d5 {[%emt 0:00:42]} 3. Bf4 {[%emt 0:00:04]} e6 {[%emt 0:04:58]} 4. e3 {[%emt 0:02:45]} Be7 {[%emt 0:06:26]} 5. Nf3 {[%emt 0:00:07]} O-O {[%emt 0:00:06]} 6. h3 {[%emt 0:00:34]} c5 {[%emt 0:06:06]} 7. dxc5 {[%emt 0:00:19]} Bxc5 {[%emt 0:01:21]} 8. Bd3 {[%emt 0:00:04]} Nc6 {[%emt 0:01:08]} 9. O-O {[%emt 0:00:04]} Re8 {[%emt 0:08:35]} 10. Bg5 {[%emt 0:00:05]} h6 {[%emt 0:01:50]} 11. Bh4 {[%emt 0:00:03]} g5 {[%emt 0:08:07]} 12. Bg3 {[%emt 0:00:31]} e5 {[%emt 0:01:41]} 13. Bb5 {[%emt 0:00:04]} Qd6 {[%emt 0:02:44]} 14. Na4 {[%emt 0:14:05]} Bb4 {[%emt 0:07:38]} 15. a3 {[%emt 0:03:15]} Ba5 {[%emt 0:00:08]} 16. c4 {[%emt 0:00:29]} a6 {[%emt 0:01:04]} 17. c5 {[%emt 0:04:38]} Qb8 {[%emt 0:00:40]} 18. Be2 {[%emt 0:03:54]} Be6 {[%emt 0:06:00]} 19. b4 {[%emt 0:03:44]} Bc7 {[%emt 0:00:13]} 20. Nb6 {[%emt 0:00:03]} Bxb6 {[%emt 0:00:45]} 21. cxb6 {[%emt 0:00:01]} Ne4 {[%emt 0:07:13]} 22. Bh2 {[%emt 0:02:15]} f6 {[%emt 0:01:45]} 23. Nd4 {[%emt 0:03:16]} Qc8 {[%emt 0:03:59]} 24. Nxe6 {[%emt 0:00:05]} Nc3 {[%emt 0:00:13]} 25. Nc7 {[%emt 0:00:03]} Nxd1 {[%emt 0:00:14]} 26. Rfxd1 {[%emt 0:00:04]} Rd8 {[%emt 0:01:52]} 27. Rxd5 {[%emt 0:06:43]} Rxd5 {[%emt 0:01:20]} 28. Bc4 {[%emt 0:00:01]} Kh8 {[%emt 0:03:25]} 29. Bxd5 {[%emt 0:00:05]} Rb8 {[%emt 0:01:37]} 30. f4 {[%emt 0:00:16]} exf4 {[%emt 0:02:23]} 31. exf4 {[%emt 0:00:02]} Qf5 {[%emt 0:02:41]} 32. fxg5 {[%emt 0:00:37]} hxg5 {[%emt 0:00:11]} 33. Kh1 {[%emt 0:03:16]} Ne5 {[%emt 0:01:02]} 34. a4 {[%emt 0:01:12]} Nd3 {[%emt 0:06:20]} 35. b5 {[%emt 0:00:18]} a5 {[%emt 0:00:45]} 36. Bg3 {[%emt 0:07:13]} Nf4 {[%emt 0:04:05]} 37. Bf3 {[%emt 0:12:16]} Nxh3 {[%emt 0:03:33]} 38. Na6 {[%emt 0:00:02]} Rd8 {[%emt 0:01:43]} 39. Bxb7 {[%emt 0:00:05]} Qg4 {[%emt 0:01:37]} 40. Kh2 {[%emt 0:03:35]} Ng1 {[%emt 0:30:11]} 41. Re1 {[%emt 0:34:14]} Ne2 {[%emt 0:01:49]} 42. Rxe2 {[%emt 0:00:07]} Qh5+ {[%emt 0:00:43]} 43. Kg1 {[%emt 0:00:29]} Qxe2 {[%emt 0:00:05]} 44. Bf3 {[%emt 0:00:06]} Qe3+ {[%emt 0:00:15]} 45. Bf2 {[%emt 0:08:16]} Qc1+ {[%emt 0:00:06]} 46. Kh2 {[%emt 0:00:02]} Kg7 {[%emt 0:01:16]} 47. Bh5 {[%emt 0:01:09]} Rh8 {[%emt 0:00:11]} 48. g4 {[%emt 0:00:04]} Qc4 {[%emt 0:00:00]} 49. Nc7 {[%emt 0:00:00]} Rd8 {[%emt 0:00:00]} 50. Ne8+ {[%emt 0:00:00]} Rxe8 {[%emt 0:00:00]} 51. Bxe8 {[%emt 0:00:00]} Qe2 {[%emt 0:00:00]} 52. Kg1 {[%emt 0:00:00]} Qxe8 {[%emt 0:00:00]} 53. b7 {[%emt 0:00:00]} Qb8 {[%emt 0:00:00]} 0-1